fUSD/lending_fUSD_20250702
["ID","MTS","AMOUNT","RATE_DAILY","PERIOD"]
[369026410,1751435486874,-490.0,0.00018245,2]
[369026411,1751435486883,-490.0,0.00018245,2]
[369026412,1751435486892,-490.0,0.00018245,2]
[369026413,1751435486902,-490.0,0.00018245,2]
[369026414,1751435486912,-1133.01,0.00018245,2]
[369026415,1751435486921,-490.0,0.00018245,2]
[369026416,1751435486931,-1197.94,0.00018245,2]
[369026417,1751435486940,-490.0,0.00018245,2]
[369026418,1751435486950,-957.56,0.00018245,2]
[369026419,1751435486959,-490.0,0.00018245,2]
[369026420,1751435486968,-677.99,0.00018245,2]
[369026421,1751435486978,-490.0,0.00018245,2]
[369026422,1751435486988,-1377.32,0.00018245,2]
[369026423,1751435486997,-490.0,0.00018245,2]
[369026424,1751435487007,-490.0,0.00018245,2]
[369026425,1751435487016,-490.0,0.00018245,2]
[369026426,1751435487025,-803.38,0.00018245,2]
[369026427,1751435487034,-490.0,0.00018245,2]
[369026428,1751435487043,-826.79,0.00018245,2]
[369026429,1751435487052,-2484.38,0.00018245,2]
[369026430,1751435487062,-438.12522085,0.00018245,2]
[369026431,1751435487071,-490.0,0.00018245,2]
[369026432,1751435487080,-1162.54,0.00018245,2]
[369026433,1751435487090,-607.84,0.00018245,2]
[369026434,1751435487099,-490.0,0.00018245,2]
[369026435,1751435487108,-1610.3,0.00018245,2]
[369026436,1751435487117,-610.09,0.00018245,2]
[369026437,1751435487127,-552.47,0.00018245,2]
[369026438,1751435487136,-1276.78,0.00018245,2]
[369026439,1751435487146,-627.58,0.00018245,2]
[369026440,1751435487155,-490.0,0.00018245,2]
[369026441,1751435487164,-490.0,0.00018245,2]
[369026442,1751435487173,-490.0,0.00018245,2]
[369026443,1751435487182,-5338.45,0.00018245,2]
[369026444,1751435487192,-758.38,0.00018245,2]
[369026445,1751435487201,-1168.3,0.00018245,2]
[369026446,1751435487211,-1023.2,0.00018245,2]
[369026447,1751435487220,-1065.59,0.00018245,2]
[369026448,1751435487230,-1917.48,0.00018245,2]
[369026449,1751435487240,-490.0,0.00018245,2]
[369026450,1751435487249,-2167.8,0.00018245,2]
[369026451,1751435487258,-490.0,0.00018245,2]
[369026452,1751435487267,-970.14,0.00018245,2]
[369026453,1751435487277,-490.0,0.00018245,2]
[369026454,1751435487290,-560.22,0.00018245,2]
[369026455,1751435487300,-593.22,0.00018245,2]
[369026456,1751435487309,-581.91,0.00018245,2]
[369026457,1751435487476,-490.0,0.00018245,2]
[369026458,1751435487487,-2155.81,0.00018245,2]
[369026459,1751435487497,-490.0,0.00018245,2]
[369026460,1751435487507,-803.54,0.00018245,2]
[369026461,1751435487516,-830.7,0.00018245,2]
[369026462,1751435487526,-784.78,0.00018245,2]
[369026463,1751435487536,-723.17,0.00018245,2]
[369026464,1751435487545,-490.0,0.00018245,2]
[369026465,1751435487554,-1308.41,0.00018245,2]
[369026466,1751435487563,-2957.3,0.00018245,2]
[369026467,1751435487573,-2299.52,0.00018245,2]
[369026468,1751435487582,-2335.61,0.00018245,2]
[369026469,1751435487592,-5582.15,0.00018245,2]
[369026470,1751435487602,-183.910635,0.00018245,2]
[369026471,1751435487611,-199.714893,0.00018245,2]
[369026472,1751435487621,-926.99,0.00018245,2]
[369026473,1751435487630,-1700.35,0.00018245,2]
[369026474,1751435487639,-2554.81,0.00018245,2]
[369026475,1751435487650,-594.48,0.00018245,2]
[369026476,1751435487659,-901.97,0.00018245,2]
[369026477,1751435487669,-909.28,0.00018245,2]
[369026478,1751435487678,-1269.02,0.00018245,2]
[369026479,1751435487687,-2515.76,0.00018245,2]
[369026480,1751435487697,-2931.23,0.00018245,2]
[369026481,1751435487707,-1060.18,0.00018245,2]
[369026482,1751435487716,-2225.59,0.00018245,2]
[369026483,1751435487725,-490.0,0.00018245,2]
[369026484,1751435487735,-981.9,0.00018245,2]
[369026485,1751435487745,-490.0,0.00018245,2]
[369026486,1751435487754,-1333.82,0.00018245,2]
[369026487,1751435487763,-1572.95,0.00018245,2]
[369026488,1751435487773,-490.0,0.00018245,2]
[369026489,1751435487783,-490.0,0.00018245,2]
[369026490,1751435487793,-490.0,0.00018245,2]
[369026491,1751435487802,-1540.3,0.00018245,2]
[369026492,1751435487811,-1251.88,0.00018245,2]
[369026493,1751435487821,-1622.31,0.00018245,2]
[369026494,1751435487830,-529.38,0.00018245,2]
[369026495,1751435487840,-490.0,0.00018245,2]
[369026496,1751435487849,-2322.4,0.00018245,2]
[369026497,1751435487860,-1048.16,0.00018245,2]
[369026498,1751435487869,-540.80422994,0.00018245,2]
[369026499,1751435488962,-3169.47,0.000166,2]
[369026500,1751435488972,-500.0,0.000166,2]
[369026501,1751435488981,-500.0,0.000166,2]
[369026502,1751435488991,-309.09174013,0.000166,2]
[369026503,1751435489000,-564.03453918,0.000166,2]
[369026504,1751435489010,-523.07135258,0.00016601,2]
[369026505,1751435489019,-492.78114716,0.00016601,2]
[369026506,1751435489029,-490.0,0.00016601,2]
[369026507,1751435489038,-490.0,0.00016601,2]
[369026508,1751435489048,-649.58,0.00016601,2]
[369026509,1751435489214,-490.0,0.00016701,2]
[369026510,1751435489225,-490.0,0.00016701,2]
[369026511,1751435489234,-500.0,0.00016701,2]
[369026512,1751435489243,-150.0,0.00016708,2]
[369026513,1751435489253,-1391.75213011,0.00016874,2]
[369026597,1751435653904,490.0,0.00027397,120]
[369026605,1751436221964,490.0,0.00027397,120]
[369026607,1751436370960,300.0,0.000272,120]
[369026608,1751436413055,709.71,0.00027397,120]
[369026616,1751436480117,160.51,0.00013699,2]
[369026625,1751436632217,-558.0,0.00013997,2]
[369026626,1751436632227,-200.0,0.00015646,7]
[369026627,1751436632237,-68.29,0.00015726,2]
[369026628,1751436632278,-814.61400265,0.00015726,2]
[369026629,1751436632289,-117.09599735,0.00015726,2]
[369026630,1751436632298,-234.90400265,0.00015853,2]
[369026631,1751436632338,-20.64599735,0.00015853,2]
[369026632,1751436632348,-1424.07,0.00016041,2]
[369026633,1751436632357,-207.4,0.00016242,2]
[369026634,1751436632367,-1200.0,0.00016251,2]
[369026635,1751436632376,-3834.2799088,0.00016252,2]
[369026636,1751436632453,-42540.04446119,0.00016252,2]
[369026637,1751436632463,-1181.0,0.00016307,2]
[369026638,1751436632472,-168.0,0.00016338,2]
[369026639,1751436632481,-1181.0,0.00016342,2]
[369026640,1751436632491,-395.0,0.00016498,2]
[369026641,1751436632501,-7218.96199336,0.00016499,2]
[369026642,1751436632527,-363.0,0.00016499,2]
[369026667,1751436638222,-1020.66217136,0.00016499,2]
[369026668,1751436638233,-526.43875902,0.00016499,2]
[369026669,1751436638280,-389.57019752,0.00016499,2]
[369026670,1751436638338,-1678.58141656,0.00016499,2]
[369026671,1751436638397,-5257.95938699,0.00016499,2]
[369026880,1751436640229,-1430.05196133,0.00016499,2]
[369026899,1751436640345,-2150.32041182,0.00016499,2]
[369026902,1751436640356,-2963.74100204,0.00016499,2]
[369026905,1751436640366,-330.1206965,0.00016499,2]
[369026908,1751436640375,-229.57932771,0.00016499,2]
[369027618,1751436646377,-260.9087331,0.00016499,2]
[369027622,1751436646426,-1205.80284793,0.00016499,2]
[369027623,1751436646436,-394.72665207,0.000165,2]
[369027624,1751436646447,-605.27334793,0.000165,2]
[369027625,1751436646457,-927.87752662,0.000165,2]
[369027626,1751436646466,-473.6061,0.00016501,2]
[369027627,1751436646476,-330.1206964,0.00016542,2]
[369027628,1751436646488,-500.0,0.00016573,2]
[369027629,1751436646497,-500.0,0.00016573,2]
[369027630,1751436646507,-123.39798905,0.00016573,2]
[369027631,1751436646519,-376.60201095,0.00016573,2]
[369027632,1751436646528,-330.1206964,0.00016586,2]
[369027633,1751436646537,-706.19,0.00016589,2]
[369027634,1751436646547,-300.0,0.00016591,2]
[369027635,1751436646556,-126.91509265,0.00016591,2]
[369028267,1751437229244,508.0,0.00012997,2]
[369028276,1751437523830,-250.0,0.00015,2]
[369028277,1751437523855,-2048.84,0.00015633,2]
[369028278,1751437523879,-313.4,0.00015664,2]
[369028279,1751437523903,-296.87,0.000157,2]
[369028280,1751437523927,-1000.0,0.00015705,2]
[369028281,1751437523953,-168.82,0.00015791,2]
[369028282,1751437523980,-252.0,0.00016213,2]
[369028283,1751437524004,-450.41290407,0.00016353,2]
[369028284,1751437524032,-252.0,0.00016382,2]
[369028285,1751437524058,-207.4,0.00016488,2]
[369028286,1751437524083,-1544.89,0.000165,2]
[369028287,1751437524108,-1200.0,0.00016526,2]
[369028288,1751437524137,-1553.0,0.00016527,2]
[369028289,1751437524165,-252.0,0.00016542,2]
[369028290,1751437524192,-433.0,0.00016572,2]
[369028291,1751437524217,-500.0,0.00016573,2]
[369028292,1751437524242,-502.54175334,0.00016573,2]
[369028293,1751437524550,-500.0,0.00016573,2]
[369028294,1751437524575,-347.60661899,0.00016573,2]
[369028295,1751437524599,-500.0,0.00016573,2]
[369028296,1751437524624,-497.6364936,0.00016573,2]
[369028297,1751437524649,-500.0,0.00016573,2]
[369028298,1751437524674,-500.0,0.00016573,2]
[369028299,1751437524701,-500.0,0.00016573,2]
[369028300,1751437524727,-500.0,0.00016573,2]
[369028301,1751437524752,-500.0,0.00016573,2]
[369028302,1751437524779,-500.0,0.00016573,2]
[369028303,1751437524803,-500.44102052,0.00016573,2]
[369028304,1751437524828,-175.07,0.00016588,2]
[369028305,1751437524852,-388.4,0.00016588,2]
[369028306,1751437524877,-300.0,0.00016589,2]
[369028307,1751437524902,-300.0,0.00016589,2]
[369028308,1751437524926,-162.09,0.00016596,2]
[369028309,1751437524951,-1678.629,0.00016596,2]
[369028310,1751437524975,-364.9029242,0.00016597,2]
[369028311,1751437525003,-31116.39020594,0.00016597,2]
[369028312,1751437525031,-500.0,0.00016597,2]
[369028313,1751437525057,-500.0,0.00016597,2]
[369028314,1751437525084,-500.0,0.00016597,2]
[369028315,1751437525111,-393.98179256,0.00016597,2]
[369028316,1751437525139,-380.22429993,0.00016597,2]
[369028317,1751437525163,-500.0,0.00016597,2]
[369028318,1751437525189,-500.0,0.00016597,2]
[369028319,1751437525216,-500.0,0.00016597,2]
[369028320,1751437525241,-490.0,0.00016597,2]
[369028321,1751437525270,-490.0,0.00016597,2]
[369028322,1751437525295,-490.0,0.00016597,2]
[369028323,1751437525321,-490.0,0.00016597,2]
[369028324,1751437525347,-490.0,0.00016597,2]
[369028325,1751437525372,-490.0,0.00016597,2]
[369028326,1751437525397,-490.0,0.00016597,2]
[369028327,1751437525420,-441.22945313,0.00016597,2]
[369028328,1751437525445,-490.0,0.00016597,2]
[369028329,1751437525470,-490.0,0.00016597,2]
[369028330,1751437525495,-1152.26,0.00016597,2]
[369028331,1751437525519,-490.0,0.00016597,2]
[369028332,1751437525543,-490.0,0.00016597,2]
[369028333,1751437525567,-760.15,0.00016597,2]
[369028334,1751437525592,-490.0,0.00016597,2]
[369028335,1751437525618,-490.0,0.00016597,2]
[369028336,1751437525641,-490.0,0.00016597,2]
[369028337,1751437525665,-618.29,0.00016597,2]
[369028338,1751437525690,-840.62,0.00016597,2]
[369028339,1751437525714,-490.0,0.00016597,2]
[369028340,1751437525738,-490.0,0.00016597,2]
[369028341,1751437525762,-490.0,0.00016597,2]
[369028342,1751437525786,-490.0,0.00016597,2]
[369028343,1751437525813,-490.0,0.00016597,2]
[369028344,1751437525838,-521.7,0.00016597,2]
[369028345,1751437525862,-490.0,0.00016597,2]
[369028346,1751437525886,-490.0,0.00016597,2]
[369028347,1751437525910,-490.0,0.00016597,2]
[369028348,1751437525934,-490.0,0.00016597,2]
[369028349,1751437525958,-490.0,0.00016597,2]
[369028350,1751437525982,-490.0,0.00016597,2]
[369028351,1751437526007,-490.0,0.00016597,2]
[369028352,1751437526031,-490.0,0.00016597,2]
[369028353,1751437526055,-490.0,0.00016597,2]
[369028354,1751437526079,-490.0,0.00016597,2]
[369028355,1751437526104,-490.0,0.00016597,2]
[369028356,1751437526129,-973.28,0.00016597,2]
[369028357,1751437526154,-542.88,0.00016597,2]
[369028358,1751437526182,-595.88,0.00016597,2]
[369028359,1751437526206,-490.0,0.00016597,2]
[369028360,1751437526230,-501.45963708,0.00016597,2]
[369028361,1751437526256,-490.0,0.00016597,2]
[369028362,1751437526281,-490.0,0.00016597,2]
[369028363,1751437526306,-490.0,0.00016597,2]
[369028364,1751437526331,-490.0,0.00016597,2]
[369028365,1751437526356,-490.0,0.00016597,2]
[369028366,1751437526589,-490.0,0.00016597,2]
[369028367,1751437526616,-490.0,0.00016597,2]
[369028368,1751437526643,-856.14,0.00016597,2]
[369028369,1751437526669,-524.81,0.00016597,2]
[369028370,1751437526694,-490.0,0.00016597,2]
[369028371,1751437526718,-490.0,0.00016597,2]
[369028372,1751437526744,-524.84838322,0.00016597,2]
[369028373,1751437526769,-595.1,0.00016597,2]
[369028374,1751437526793,-492.91251642,0.00016597,2]
[369028375,1751437526818,-490.0,0.00016597,2]
[369028376,1751437526843,-490.0,0.00016597,2]
[369028377,1751437526868,-490.0,0.00016597,2]
[369028378,1751437526892,-939.12,0.00016597,2]
[369028379,1751437526918,-490.0,0.00016597,2]
[369028380,1751437526942,-490.0,0.00016597,2]
[369028381,1751437526973,-490.0,0.00016597,2]
[369028382,1751437526997,-490.0,0.00016597,2]
[369028383,1751437527023,-490.0,0.00016597,2]
[369028384,1751437527049,-1004.99452687,0.00016597,2]
[369028385,1751437527074,-490.0,0.00016597,2]
[369028386,1751437527099,-490.0,0.00016597,2]
[369028387,1751437527125,-490.0,0.00016597,2]
[369028388,1751437527149,-490.0,0.00016597,2]
[369028389,1751437527175,-595.11,0.00016597,2]
[369028390,1751437527202,-2842.29,0.00016597,2]
[369028391,1751437527229,-4366.37847013,0.00016597,2]
[369028393,1751437641423,-1598.0,0.00015921,2]
[369028394,1751437641451,-1598.0,0.00016127,2]
[369028395,1751437641478,-1566.18834642,0.00016497,2]
[369028396,1751437641504,-1052.37892639,0.00016498,2]
[369028397,1751437641529,-280.60259194,0.00016498,2]
[369028398,1751437641554,-280.60259194,0.00016541,2]
[369028399,1751437641578,-500.0,0.00016573,2]
[369028400,1751437641602,-348.06138828,0.00016573,2]
[369028401,1751437641627,-500.0,0.00016573,2]
[369028402,1751437641651,-158.55194232,0.00016573,2]
[369028403,1751437641674,-503.18087243,0.00016573,2]
[369028404,1751437641700,-280.60259194,0.00016585,2]
[369028405,1751437641727,-207.4,0.00016588,2]
[369028406,1751437641751,-206.79560735,0.00016588,2]
[369028407,1751437641775,-611.0,0.00016596,2]
[369028408,1751437641801,-490.0,0.00016597,2]
[369028409,1751437641826,-556.91,0.00016597,2]
[369028410,1751437641850,-541.4628917,0.00016597,2]
[369028411,1751437641875,-490.0,0.00016597,2]
[369028412,1751437641901,-490.0,0.00016597,2]
[369028413,1751437641926,-490.0,0.00016597,2]
[369028414,1751437641952,-490.0,0.00016597,2]
[369028415,1751437641978,-490.0,0.00016597,2]
[369028416,1751437642003,-490.0,0.00016597,2]
[369028417,1751437642028,-492.79966489,0.00016597,2]
[369028418,1751437642053,-490.0,0.00016597,2]
[369028419,1751437642077,-490.0,0.00016597,2]
[369028420,1751437642101,-1004.09,0.00016597,2]
[369028421,1751437642129,-491.63820929,0.00016597,2]
[369028422,1751437642152,-490.0,0.00016597,2]
[369028423,1751437642176,-490.0,0.00016597,2]
[369028424,1751437642202,-490.0,0.00016597,2]
[369028425,1751437642228,-506.3,0.00016597,2]
[369028426,1751437642252,-490.0,0.00016597,2]
[369028427,1751437642277,-730.25,0.00016597,2]
[369028428,1751437642301,-490.0,0.00016597,2]
[369028429,1751437642324,-492.40481,0.00016597,2]
[369028430,1751437642348,-490.0,0.00016597,2]
[369028431,1751437642375,-490.0,0.00016597,2]
[369028432,1751437642399,-667.09,0.00016597,2]
[369028433,1751437642425,-196.24288255,0.00016597,2]
[369028434,1751437642450,-743.716663,0.00016597,2]
[369028435,1751437642475,-154.052172,0.00016597,2]
[369028436,1751437642498,-157.190482,0.00016597,2]
[369028437,1751437642523,-491.71200135,0.00016597,2]
[369028438,1751437642549,-490.0,0.00016597,2]
[369028439,1751437642574,-814.830438,0.00016597,2]
[369028440,1751437642599,-876.890855,0.00016597,2]
[369028441,1751437642625,-743.79,0.00016597,2]
[369028442,1751437642649,-490.0,0.00016597,2]
[369028443,1751437642674,-610.49,0.00016597,2]
[369028444,1751437642698,-940.23,0.00016597,2]
[369028445,1751437642724,-490.0,0.00016597,2]
[369028446,1751437642748,-564.76010418,0.00016597,2]
[369028447,1751437642774,-1216.71,0.00016597,2]
[369028448,1751437642811,-567.88,0.00016597,2]
[369028449,1751437642840,-745.53,0.00016597,2]
[369028450,1751437642865,-490.0,0.00016597,2]
[369028451,1751437642890,-490.0,0.00016597,2]
[369028452,1751437642919,-6663.44,0.00016597,2]
[369028453,1751437642948,-490.0,0.00016597,2]
[369028454,1751437642975,-576.48,0.00016597,2]
[369028455,1751437642999,-490.0,0.00016597,2]
[369028456,1751437643024,-490.0,0.00016597,2]
[369028457,1751437643050,-490.0,0.00016597,2]
[369028458,1751437643075,-183.9789871,0.00016597,2]
[369028459,1751437643099,-490.0,0.00016597,2]
[369028460,1751437643127,-1608.81,0.00016597,2]
[369028461,1751437643153,-490.0,0.00016597,2]
[369028462,1751437643178,-490.0,0.00016597,2]
[369028463,1751437643205,-490.0,0.00016597,2]
[369028464,1751437643231,-490.0,0.00016597,2]
[369028465,1751437643257,-490.0,0.00016597,2]
[369028466,1751437643283,-490.0,0.00016597,2]
[369028467,1751437643308,-490.0,0.00016597,2]
[369028468,1751437643339,-1762.71,0.00016597,2]
[369028469,1751437643588,-490.0,0.00016597,2]
[369028470,1751437643614,-1248.4,0.00016597,2]
[369028471,1751437643638,-491.19324777,0.00016597,2]
[369028472,1751437643662,-1021.5,0.00016597,2]
[369028473,1751437643686,-490.0,0.00016597,2]
[369028474,1751437643712,-1108.85,0.00016597,2]
[369028475,1751437643744,-1496.55,0.00016597,2]
[369028476,1751437643771,-490.0,0.00016597,2]
[369028477,1751437643795,-843.66,0.00016597,2]
[369028478,1751437643819,-1142.98,0.00016597,2]
[369028479,1751437643843,-490.0,0.00016597,2]
[369028480,1751437643867,-490.0,0.00016597,2]
[369028481,1751437643891,-490.0,0.00016597,2]
[369028482,1751437643916,-490.0,0.00016597,2]
[369028483,1751437643941,-490.0,0.00016597,2]
[369028484,1751437643966,-490.0,0.00016597,2]
[369028485,1751437643991,-577.65834527,0.00016597,2]
[369028486,1751437644014,-482.51862408,0.00016597,2]
[369028487,1751437644039,-1268.69,0.00016597,2]
[369028488,1751437644064,-490.0,0.00016597,2]
[369028489,1751437644089,-1403.9,0.00016597,2]
[369028490,1751437644114,-927.38,0.00016597,2]
[369028491,1751437644140,-2610.72,0.00016597,2]
[369028492,1751437644165,-490.0,0.00016597,2]
[369028493,1751437644190,-490.0,0.00016597,2]
[369028494,1751437644214,-490.0,0.00016597,2]
[369028495,1751437644238,-490.0,0.00016597,2]
[369028496,1751437644263,-1111.06,0.00016597,2]
[369028497,1751437644295,-954.22,0.00016597,2]
[369028498,1751437644321,-2253.86,0.00016597,2]
[369028499,1751437644347,-490.0,0.00016597,2]
[369028500,1751437644374,-1140.83,0.00016597,2]
[369028501,1751437644405,-805.01,0.00016597,2]
[369028502,1751437644430,-490.0,0.00016597,2]
[369028503,1751437644458,-490.0,0.00016597,2]
[369028504,1751437644483,-490.0,0.00016597,2]
[369028505,1751437644507,-239.75157475,0.00016597,2]
[369028506,1751437644533,-490.0,0.00016597,2]
[369028507,1751437644559,-1052.83,0.00016597,2]
[369028508,1751437644586,-586.88,0.00016597,2]
[369028509,1751437644612,-1490.07,0.00016597,2]
[369028510,1751437644638,-490.0,0.00016597,2]
[369028511,1751437644664,-772.22,0.00016597,2]
[369028512,1751437644688,-490.0,0.00016597,2]
[369028513,1751437644714,-490.0,0.00016597,2]
[369028514,1751437644741,-995.63,0.00016597,2]
[369028515,1751437644767,-490.0,0.00016597,2]
[369028516,1751437644793,-570.03,0.00016597,2]
[369028517,1751437644820,-7835.23,0.00016597,2]
[369028518,1751437644845,-490.0,0.00016597,2]
[369028519,1751437644871,-490.0,0.00016597,2]
[369028520,1751437644898,-599.05,0.00016597,2]
[369028521,1751437644925,-490.0,0.00016597,2]
[369028522,1751437644951,-490.0,0.00016597,2]
[369028523,1751437644979,-490.0,0.00016597,2]
[369028524,1751437645004,-285.57318806,0.00016597,2]
[369028525,1751437648878,-300.0,0.00016588,2]
[369028526,1751437648904,-204.42681194,0.00016597,2]
[369028527,1751437648934,-490.0,0.00016597,2]
[369028528,1751437648958,-490.0,0.00016597,2]
[369028529,1751437648984,-576.63,0.00016597,2]
[369028530,1751437649010,-1008.01,0.00016597,2]
[369028531,1751437649035,-490.68459482,0.00016597,2]
[369028532,1751437649059,-490.0,0.00016597,2]
[369028533,1751437649083,-490.0,0.00016597,2]
[369028534,1751437649107,-490.0,0.00016597,2]
[369028535,1751437649132,-490.0,0.00016597,2]
[369028536,1751437649157,-490.0,0.00016597,2]
[369028537,1751437649182,-490.0,0.00016597,2]
[369028538,1751437649208,-1011.87,0.00016597,2]
[369028539,1751437649232,-490.0,0.00016597,2]
[369028540,1751437649259,-1281.06,0.00016597,2]
[369028541,1751437649284,-1141.68,0.00016597,2]
[369028542,1751437649308,-490.0,0.00016597,2]
[369028543,1751437649333,-490.0,0.00016597,2]
[369028544,1751437649357,-490.0,0.00016597,2]
[369028545,1751437649385,-490.0,0.00016597,2]
[369028546,1751437649413,-4891.04,0.00016597,2]
[369028547,1751437649438,-2833.03,0.00016597,2]
[369028548,1751437649462,-1214.01,0.00016597,2]
[369028549,1751437649487,-490.0,0.00016597,2]
[369028550,1751437649512,-1049.39,0.00016597,2]
[369028551,1751437649536,-490.0,0.00016597,2]
[369028552,1751437649561,-490.0,0.00016597,2]
[369028553,1751437649586,-1519.24,0.00016597,2]
[369028554,1751437649610,-490.0,0.00016597,2]
[369028555,1751437649635,-567.98,0.00016597,2]
[369028556,1751437649669,-490.0,0.00016597,2]
[369028557,1751437649697,-490.0,0.00016597,2]
[369028558,1751437649723,-929.12,0.00016597,2]
[369028559,1751437649750,-490.0,0.00016597,2]
[369028560,1751437649776,-490.0,0.00016597,2]
[369028561,1751437649805,-2979.42,0.00016597,2]
[369028562,1751437649831,-490.0,0.00016597,2]
[369028563,1751437649857,-174.449129,0.00016597,2]
[369028564,1751437649882,-490.0,0.00016597,2]
[369028565,1751437649906,-959.75,0.00016597,2]
[369028566,1751437649932,-490.0,0.00016597,2]
[369028567,1751437649960,-4414.35,0.00016597,2]
[369028568,1751437649986,-490.0,0.00016597,2]
[369028569,1751437650012,-490.0,0.00016597,2]
[369028570,1751437650038,-490.0,0.00016597,2]
[369028571,1751437650064,-490.0,0.00016597,2]
[369028572,1751437650089,-1189.2,0.00016597,2]
[369028573,1751437650114,-1348.1,0.00016597,2]
[369028574,1751437650140,-1309.69,0.00016597,2]
[369028575,1751437650166,-490.0,0.00016597,2]
[369028576,1751437650194,-1228.8,0.00016597,2]
[369028577,1751437650224,-490.0,0.00016597,2]
[369028578,1751437650253,-490.0,0.00016597,2]
[369028579,1751437650278,-490.0,0.00016597,2]
[369028580,1751437650304,-300.0,0.00016597,2]
[369028581,1751437650330,-490.0,0.00016597,2]
[369028582,1751437650357,-1300.74,0.00016597,2]
[369028583,1751437650386,-1068.81,0.00016597,2]
[369028584,1751437650411,-490.0,0.00016597,2]
[369028585,1751437650439,-2568.25,0.00016597,2]
[369028586,1751437650466,-490.0,0.00016597,2]
[369028587,1751437650492,-1189.16,0.00016597,2]
[369028588,1751437650518,-688.67,0.00016597,2]
[369028589,1751437650543,-544.67,0.00016597,2]
[369028590,1751437650569,-490.0,0.00016597,2]
[369028591,1751437650595,-490.0,0.00016597,2]
[369028592,1751437650619,-490.0,0.00016597,2]
[369028593,1751437650643,-490.0,0.00016597,2]
[369028594,1751437650668,-580.58,0.00016597,2]
[369028595,1751437650694,-1046.09,0.00016597,2]
[369028596,1751437650720,-527.86,0.00016597,2]
[369028597,1751437650750,-490.0,0.00016597,2]
[369028598,1751437650777,-490.0,0.00016597,2]
[369028599,1751437650805,-158.143605,0.00016597,2]
[369028600,1751437650830,-490.0,0.00016597,2]
[369028601,1751437650856,-490.0,0.00016597,2]
[369028602,1751437650883,-500.0,0.00016597,2]
[369028603,1751437651234,-490.0,0.00016597,2]
[369028604,1751437651259,-974.07,0.00016597,2]
[369028605,1751437651284,-4371.02585924,0.00016597,2]
[369028611,1751437695950,160.51,0.00013699,2]
[369029098,1751437832521,-300.0,0.00015099,2]
[369029099,1751437832531,-49.24482149,0.00015099,2]
[369029100,1751437832604,-1150.75517851,0.00015099,2]
[369029101,1751437832614,-11618.51525742,0.000151,2]
[369029102,1751437832630,-626.7800901,0.000151,2]
[369029103,1751437832687,-652.34217803,0.000151,2]
[369029104,1751437832769,-373.2199099,0.000151,2]
[369029476,1751437840795,-23341.50695373,0.000151,2]
[369029478,1751437840805,-420.0,0.00016523,2]
[369029480,1751437840815,-161.64408109,0.00016573,2]
[369029482,1751437840825,-500.0,0.00016573,2]
[369029484,1751437840835,-500.0,0.00016573,2]
[369029486,1751437840844,-591.73286324,0.00016573,2]
[369029488,1751437840855,-500.85687905,0.00016573,2]
[369029490,1751437840865,-500.0,0.00016573,2]
[369029492,1751437840875,-175.07,0.00016588,2]
[369029494,1751437840885,-291.3,0.00016588,2]